bitfinex-derivatives/quotes_SOLF0:USTF0_20251020
["timestamp","ask_amount","ask_price","bid_price","bid_amount"]
[1760938447538,6.35761137,193.03,192.99,7.492]
[1760938447733,2.59,193.03,192.99,4.662]
[1760938447936,3.85753159,193.03,192.97,4.6625]
[1760938448140,2.59,193.02,192.97,4.6625]
[1760938448340,2.53274272,193.05,192.97,4.6625]
[1760938448341,10.21568369,193.03,192.97,4.6625]
[1760938448544,7.6259644,193.02,192.97,4.6625]
[1760938448841,2.59,193.01,192.97,4.6625]
[1760938449038,8.41190403,193.04,192.98,2.83]
[1760938449241,10.2159633,193.03,192.98,2.83]
[1760938449443,7.6259633,193.02,192.98,2.83]
[1760938449643,6.44773779,193.02,192.97,4.6625]
[1760938449840,2.59,193.03,192.97,7.4925]
[1760938450041,2.59,193.01,192.97,7.4925]
[1760938450241,5.12274272,193.05,192.96,2.83]
[1760938450538,7.6249694,193.04,192.96,2.83]
[1760938450745,3.85711768,193.04,192.96,2.83]
[1760938451047,5.12274272,193.05,192.94,2.83]
[1760938451747,5.12274272,193.05,193.0,4.6616]
[1760938451934,8.97962967,193.05,193.0,7.4916]
[1760938452139,5.12274272,193.05,193.0,7.4916]
[1760938452340,6.35803977,193.04,193.0,2.83]
[1760938452540,3.76803977,193.04,192.98,4.6623]
[1760938452841,3.76803977,193.04,192.96,2.83]
[1760938453442,5.12274272,193.05,192.96,2.83]
[1760938454036,5.12274272,193.05,192.99,4.6618]
[1760938455142,8.89004305,193.05,192.99,4.6618]
[1760938455345,5.12274272,193.05,192.99,4.6618]
[1760938456245,8.88984838,193.05,192.99,4.6618]
[1760938456542,5.12274272,193.05,192.99,4.6618]
[1760938456953,8.8896535,193.05,192.99,4.6618]
[1760938457153,5.12274272,193.05,192.99,4.6618]
[1760938457745,2.53274272,193.05,192.99,4.6618]
[1760938457949,5.31274272,193.05,192.99,4.6618]
[1760938459956,3.76649018,193.04,192.96,4.6626]
[1760938460251,2.78,193.03,192.96,4.6626]
[1760938460452,2.78,193.03,192.95,2.75]
[1760938462051,6.63745989,193.03,192.95,2.75]
[1760938462251,2.78,193.03,192.95,2.75]
[1760938462452,4.5538948,193.04,192.95,6.10466956]
[1760938462659,3.78191616,193.03,192.96,2.75]
[1760938462851,3.78191616,193.04,192.96,2.75]
[1760938463049,2.78,193.04,192.97,4.6624]
[1760938463252,6.64016982,193.04,192.97,4.6624]
[1760938464153,3.78322038,193.03,192.97,4.6624]
[1760938464354,2.78,193.04,192.97,4.6624]
[1760938464557,3.78419043,193.03,192.97,4.6624]
[1760938464756,2.78,193.04,192.96,2.75]
[1760938464952,7.64555397,193.03,192.96,2.75]
[1760938465159,3.78435865,193.02,192.96,2.75]
[1760938465356,2.78,193.04,192.96,2.75]
[1760938465551,7.64891968,193.03,192.96,2.75]
[1760938465751,3.78596206,193.02,192.96,2.75]
[1760938465954,7.4411,193.04,192.96,2.75]
[1760938466149,12.20800673,193.03,192.96,2.75]
[1760938466353,7.65172866,193.02,192.96,2.75]
[1760938466559,4.55925027,193.03,192.96,2.75]
[1760938466749,7.4411,193.04,192.95,4.663]
[1760938466750,2.78,193.01,192.95,4.663]
[1760938466955,2.78,192.99,192.95,4.663]
[1760938467159,2.78,192.99,192.95,7.413]
[1760938467860,2.78,192.99,192.95,4.663]
[1760938468158,4.56028303,193.02,192.96,2.75]
[1760938468463,7.65601697,193.01,192.93,2.75]
[1760938468663,4.56035878,193.04,192.93,2.75]
[1760938468961,14.9959527,193.03,192.93,2.75]
[1760938469158,12.2159527,193.02,192.93,2.75]
[1760938469359,3.78887196,193.01,192.97,2.75]
[1760938469554,2.78,193.03,192.98,2.75]
[1760938469753,3.78883138,193.02,192.93,2.75]
[1760938469958,2.78,193.03,192.93,2.75]
[1760938470158,7.65566237,193.02,192.93,2.75]
[1760938470357,7.19344272,193.05,192.92,3.35466956]
[1760938470358,5.31274272,193.05,192.98,2.75]
[1760938470562,12.2160139,193.04,192.98,2.75]
[1760938470760,7.65560006,193.03,192.96,2.75]
[1760938470955,2.78,193.03,192.97,4.6625]
[1760938471864,2.78,193.02,192.99,4.6621]
[1760938472262,2.78,193.03,192.97,4.6625]
[1760938473564,2.78,193.01,192.97,4.6625]
[1760938474070,2.78,193.01,192.97,7.4125]
[1760938474564,7.19354272,193.05,192.97,4.6625]
[1760938474769,12.2169998,193.04,192.97,7.4125]
[1760938474970,12.2169998,193.03,192.97,7.4125]
[1760938475170,2.78,193.01,192.97,7.4125]
[1760938475569,4.56083431,193.04,192.97,7.4125]
[1760938475766,4.56083431,193.04,192.97,4.6625]
[1760938475767,2.78,193.02,192.97,4.6625]
[1760938475970,2.78,193.0,192.94,2.75]
[1760938476268,2.78,193.03,192.94,2.75]
[1760938476468,12.21830272,193.02,192.94,2.75]
[1760938476771,12.21830272,193.01,192.94,2.75]
[1760938476970,7.65687942,193.0,192.95,4.6629]
[1760938477166,4.5614233,193.02,192.96,2.75]
[1760938477370,2.78,193.0,192.96,2.75]
[1760938477771,4.56125518,193.03,192.96,2.75]
[1760938477967,12.21170053,193.02,192.96,2.75]
[1760938478169,2.78,193.0,192.96,2.75]
[1760938478364,7.61108943,193.04,192.96,2.75]
[1760938478568,12.21125708,193.03,192.96,2.75]
[1760938478770,7.65007229,193.02,192.98,2.75]
[1760938478971,7.34073377,193.03,192.97,6.10466956]
[1760938479271,2.78,192.97,192.73,2.75]
[1760938479470,12.99043824,193.0,192.77,2.75]
[1760938479471,7.62594018,192.88,192.77,2.75]
[1760938479772,4.84594018,192.85,192.77,2.75]
[1760938479973,3.78902499,192.84,192.77,2.75]
[1760938480163,4.56222354,192.86,192.77,2.75]
[1760938480164,3.78902499,192.83,192.77,2.75]
[1760938480371,3.78902499,192.82,192.76,3.35466956]
[1760938480573,4.84594018,192.87,192.77,2.75]
[1760938480875,4.25382961,192.86,192.77,2.75]
[1760938481068,4.25382961,192.85,192.77,2.75]
[1760938481270,4.25382961,192.84,192.8,2.75]
[1760938481568,2.78,192.88,192.8,2.75]
[1760938481770,4.24800061,192.87,192.73,0.90245452]
[1760938481974,11.25040966,192.86,192.78,4.6671]
[1760938482277,4.24800061,192.85,192.78,4.6671]
[1760938482574,4.24800061,192.84,192.78,4.6671]
[1760938482774,4.24800061,192.83,192.79,2.75]
[1760938482975,2.78,192.86,192.79,2.75]
[1760938483172,4.24429096,192.85,192.79,2.75]
[1760938483476,7.02429096,192.84,192.79,2.75]
[1760938483771,2.78,192.84,192.79,2.75]
[1760938485774,6.13466956,192.85,192.78,4.6671]
[1760938485974,4.23455089,192.84,192.78,4.6671]
[1760938486171,6.13466956,192.82,192.78,4.6671]
[1760938486375,3.35466956,192.82,192.75,7.4178]
[1760938486575,6.13466956,192.79,192.71,2.75]
[1760938487978,6.13466956,192.79,192.72,4.6686]
[1760938489478,2.78,192.79,192.72,4.6686]
[1760938489874,6.13466956,192.79,192.74,7.258]
[1760938490778,2.15255558,192.77,192.74,7.258]
[1760938492478,2.15255558,192.77,192.74,2.59]
[1760938492679,2.78,192.79,192.7,2.59]
[1760938492880,2.15255558,192.77,192.7,2.59]
[1760938493082,2.15255558,192.75,192.7,2.59]
[1760938493276,2.15255558,192.75,192.73,4.6683]
[1760938493770,2.15255558,192.75,192.73,7.2583]
[1760938495078,2.15255558,192.8,192.74,1.04]
[1760938495283,2.15255558,192.82,192.73,2.59]
[1760938496381,2.15255558,192.8,192.73,2.59]
[1760938496685,2.82,192.87,192.71,2.15255558]
[1760938496880,2.15255558,192.81,192.72,2.59]
[1760938497079,4.25937992,192.85,192.72,2.59]
[1760938497278,2.15255558,192.82,192.72,2.59]
[1760938497481,4.25911127,192.86,192.74,2.59]
[1760938497782,2.15255558,192.83,192.74,2.59]
[1760938498580,9.51014018,192.91,192.74,31.13]
[1760938498581,2.15255558,192.81,192.74,31.13]
[1760938499079,2.15255558,192.81,192.78,4.6671]
[1760938499781,4.97255558,192.81,192.78,4.6671]
[1760938499983,2.15255558,192.8,192.78,4.6671]
[1760938500382,2.15255558,192.8,192.74,2.59]
[1760938500584,4.97255558,192.77,192.75,4.6677]
[1760938500784,2.15255558,192.77,192.75,4.6677]
[1760938501188,6.46125358,192.88,192.75,4.6677]
[1760938501189,2.82,192.88,192.75,2.15255558]
[1760938501387,7.60363532,192.92,192.76,2.59]
[1760938501590,2.15255558,192.9,192.79,2.59]
[1760938501783,2.15255558,192.9,192.79,2.15255558]
[1760938501984,2.15255558,192.9,192.8,2.59]
[1760938502186,4.25960692,192.89,192.86,4.6652]
[1760938502386,4.97255558,192.9,192.86,4.6652]
[1760938502586,4.25960673,192.89,192.86,4.6652]
[1760938502790,4.97255558,192.9,192.86,4.6652]
[1760938502987,4.2596058,192.89,192.86,4.6652]
[1760938503182,2.82,192.87,192.83,4.6658]
[1760938503381,2.15255558,192.84,192.8,2.59]
[1760938503587,4.97255558,192.84,192.75,10.94]
[1760938503886,2.82,192.81,192.79,4.6669]
[1760938504085,2.82,192.79,192.75,10.94]
[1760938504286,2.82,192.77,192.7,2.59]
[1760938504486,2.15255558,192.78,192.74,4.6681]
[1760938504688,2.82,192.77,192.7,2.59]
[1760938505389,2.15255558,192.78,192.7,2.59]
[1760938510091,2.82,192.77,192.74,4.6681]
[1760938510290,4.97255558,192.75,192.69,0.90274715]
[1760938510590,2.15255558,192.72,192.69,0.90274715]
[1760938511091,4.97255558,192.72,192.68,19.06]
[1760938511281,2.15255558,192.72,192.68,19.06]
[1760938511489,2.82,192.71,192.69,4.6693]
[1760938511787,2.82,192.71,192.68,19.06]
[1760938511990,2.15255558,192.69,192.68,19.06]
[1760938512290,2.6,192.68,192.47,43.74]
[1760938512488,2.15255558,192.63,192.57,0.90326265]
[1760938512684,2.15255558,192.63,192.58,4.6719]
[1760938513183,2.15255558,192.6,192.56,0.90354407]
[1760938513396,2.15255558,192.57,192.49,2.15255558]
[1760938513690,2.15255558,192.57,192.51,0.90366139]
[1760938514289,2.15255558,192.57,192.46,43.32]
[1760938514290,2.15255558,192.53,192.46,7.4647]
[1760938514590,2.15255558,192.53,192.46,8.36861958]
[1760938514790,2.6,192.56,192.46,8.36861958]
[1760938514986,4.26287429,192.55,192.46,8.36861958]
[1760938515191,4.26443345,192.54,192.46,3.69391958]
[1760938515493,2.6,192.56,192.46,3.69391958]
[1760938515688,4.25909595,192.55,192.46,3.69391958]
[1760938515893,2.6,192.56,192.46,3.69391958]
[1760938515894,7.38907866,192.62,192.48,2.79]
[1760938516088,2.6,192.62,192.48,2.79]
[1760938516293,6.9165743,192.62,192.48,2.79]
[1760938516693,4.3165743,192.62,192.48,2.79]
[1760938516893,2.6,192.65,192.49,2.79]
[1760938517196,7.38907866,192.65,192.55,2.86]
[1760938517397,2.6,192.65,192.55,2.86]
[1760938517792,2.63,192.6,192.49,2.86]
[1760938517986,2.63,192.56,192.46,0.90391958]
[1760938518185,2.63,192.52,192.46,0.90391958]
[1760938518396,2.63,192.52,192.41,2.86]
[1760938518699,2.63,192.52,192.42,0.90403699]
[1760938518896,7.41907866,192.52,192.42,0.90403699]
[1760938519197,4.78907866,192.51,192.42,5.57983699]
[1760938519600,5.39582509,192.49,192.42,5.57983699]
[1760938519800,8.02582509,192.49,192.39,4.6765]
[1760938520098,8.02582509,192.49,192.39,5.58072491]
[1760938520293,2.63,192.48,192.39,5.58072491]
[1760938520489,2.63,192.46,192.39,0.90422491]
[1760938520694,5.39582509,192.45,192.36,4.6772]
[1760938521801,2.63,192.44,192.36,4.6772]
[1760938522101,2.63,192.43,192.33,7.5379]
[1760938522302,2.63,192.4,192.29,3.76458923]
[1760938522800,7.41907866,192.4,192.29,3.76458923]
[1760938523103,4.78907866,192.38,192.25,2.86]
[1760938523302,4.78907866,192.38,192.27,0.90476562]
[1760938523602,2.63,192.39,192.27,0.90476562]
[1760938523603,7.41907866,192.39,192.27,0.90476562]
[1760938523998,7.41907866,192.39,192.28,4.6791]
[1760938524195,7.41907866,192.39,192.28,2.86]
[1760938526404,2.63,192.39,192.31,4.6783]
[1760938526602,2.63,192.39,192.31,7.5383]
[1760938527900,4.20694041,192.38,192.31,7.5383]
[1760938528101,4.20694041,192.37,192.31,7.5383]
[1760938528301,4.20694041,192.36,192.31,7.5383]
[1760938528502,2.63,192.39,192.31,7.5383]
[1760938528697,4.2037293,192.38,192.31,7.5383]
[1760938528998,4.2037293,192.37,192.31,7.5383]
[1760938529198,2.63,192.39,192.31,7.5383]
[1760938529391,4.2009969,192.38,192.31,7.5383]
[1760938529595,4.2009969,192.37,192.31,7.5383]
[1760938529795,2.63,192.39,192.31,7.5383]
[1760938529997,4.20095592,192.38,192.31,7.5383]
[1760938530193,4.20095592,192.37,192.31,7.5383]
[1760938530397,2.63,192.39,192.31,7.5383]
[1760938530596,4.19884833,192.38,192.31,7.5383]
[1760938530804,2.63,192.39,192.31,7.5383]
[1760938531102,2.63,192.39,192.34,2.86]
[1760938531403,2.63,192.43,192.34,2.86]
[1760938531603,4.19673015,192.42,192.34,2.86]
[1760938531804,4.19673015,192.41,192.34,2.86]
[1760938532106,4.19673015,192.4,192.35,7.5374]
[1760938532404,2.63,192.43,192.35,7.5374]
[1760938532602,4.19508882,192.42,192.35,7.5374]
[1760938532799,4.19508882,192.41,192.32,4.6781]
[1760938533107,11.13595358,192.47,192.32,4.6781]
[1760938533108,6.82508882,192.4,192.32,4.6781]
[1760938533294,4.193807,192.39,192.32,4.6781]
[1760938533498,2.63,192.4,192.32,4.6781]
[1760938534393,2.63,192.4,192.3,2.86]
[1760938534394,2.63,192.44,192.34,4.6777]
[1760938534705,4.19213591,192.43,192.34,4.6777]
[1760938534900,2.63,192.41,192.34,4.6777]
[1760938535102,4.19213591,192.4,192.33,2.86]
[1760938535302,4.19213591,192.39,192.33,2.86]
[1760938535501,2.63,192.41,192.33,2.86]
[1760938535700,4.19109121,192.4,192.33,7.5379]
[1760938535898,2.63,192.41,192.33,7.5379]
[1760938536103,4.19100799,192.4,192.33,7.5379]
[1760938536304,2.63,192.41,192.33,7.5379]
[1760938536502,4.19023203,192.4,192.33,7.5379]
[1760938536700,2.63,192.41,192.33,7.5379]
[1760938537003,4.19023203,192.4,192.33,4.6779]
[1760938537202,2.63,192.41,192.33,4.6779]
[1760938537404,4.18962385,192.4,192.33,4.6779]
[1760938537604,2.63,192.41,192.33,4.6779]
[1760938537812,4.18949958,192.4,192.33,4.6779]
[1760938538008,2.63,192.41,192.35,4.6775]
[1760938538403,2.63,192.41,192.32,2.86]
[1760938538808,4.18946227,192.4,192.34,4.6777]
[1760938539105,2.63,192.41,192.34,4.6777]
[1760938539303,4.18938138,192.4,192.34,4.6777]
[1760938539502,2.63,192.41,192.34,4.6777]
[1760938539704,4.18942931,192.4,192.34,4.6777]
[1760938539905,2.63,192.41,192.34,4.6777]
[1760938540205,4.18942894,192.4,192.34,4.6777]
[1760938540405,2.63,192.41,192.34,4.6777]
[1760938540612,2.63,192.44,192.36,4.6773]
[1760938540811,4.19011261,192.43,192.36,4.6773]
[1760938541011,4.19011261,192.42,192.36,4.6773]
[1760938541211,4.19101731,192.41,192.36,4.6773]
[1760938541415,2.63,192.41,192.36,7.5373]
[1760938541602,2.63,192.43,192.33,7.5378]
[1760938541808,2.63,192.39,192.33,4.6778]
[1760938543312,2.63,192.37,192.33,4.6778]
[1760938543912,2.63,192.42,192.33,7.5378]
[1760938544107,2.63,192.42,192.33,2.86]
[1760938544108,4.19635818,192.41,192.33,2.86]
[1760938544312,4.19635818,192.4,192.33,2.86]
[1760938544514,2.63,192.42,192.33,2.86]
[1760938544711,4.19860607,192.41,192.33,2.86]
[1760938544912,4.19860607,192.4,192.33,2.86]
[1760938545113,4.19860607,192.39,192.35,4.6775]
[1760938545309,2.63,192.42,192.35,4.6775]
[1760938545506,4.19924518,192.41,192.33,2.86]
[1760938545703,4.19924518,192.4,192.33,2.86]
[1760938545906,6.82924518,192.39,192.33,2.86]
[1760938546203,2.63,192.37,192.33,2.86]
[1760938546408,4.20326669,192.36,192.32,7.538]
[1760938546608,2.63,192.37,192.32,7.538]
[1760938546807,4.20326687,192.36,192.32,4.678]
[1760938547012,7.41907866,192.41,192.33,2.86]
[1760938547208,8.99234572,192.4,192.33,2.86]
[1760938547409,4.20326706,192.39,192.33,2.86]
[1760938547612,6.81326706,192.38,192.33,2.86]
[1760938547914,2.61,192.36,192.32,4.678]
[1760938548109,4.20326706,192.35,192.32,7.278]
[1760938548313,4.20326706,192.34,192.32,7.278]
[1760938548511,4.21440181,192.33,192.29,2.6]
[1760938548711,4.21444292,192.32,192.27,3.50476562]
[1760938548911,2.61,192.34,192.27,3.50476562]
[1760938549114,4.21469333,192.33,192.27,3.50476562]
[1760938549315,4.21469333,192.32,192.29,4.6789]
[1760938549517,4.21469333,192.31,192.29,4.6789]
[1760938549816,9.56138969,192.35,192.29,4.6789]
[1760938550118,6.82886973,192.34,192.29,7.2789]
[1760938550416,4.21886973,192.33,192.29,7.2789]
[1760938550606,4.21886973,192.32,192.29,7.2789]
[1760938550811,4.21886973,192.31,192.3,2.6]
[1760938553417,6.973e-05,192.31,192.3,2.6]
[1760938554316,6.973e-05,192.31,192.3,3.64]
[1760938554518,4.78907866,192.37,192.33,7.2779]
[1760938554910,7.39907866,192.37,192.33,2.6]
[1760938555418,7.39907866,192.35,192.32,4.6781]
[1760938555619,4.78907866,192.34,192.32,4.6781]
[1760938555916,4.78907866,192.35,192.32,4.6781]
[1760938556414,2.61,192.39,192.32,4.6781]
[1760938556415,4.78907866,192.34,192.32,7.2781]
[1760938557621,4.78907866,192.34,192.32,4.6781]
[1760938557817,4.78907866,192.34,192.33,2.6]
[1760938558222,6.46125358,192.36,192.34,4.6777]
[1760938558421,4.82235227,192.37,192.34,4.6777]
[1760938558721,4.82235227,192.37,192.29,2.6]
[1760938559119,4.82235227,192.38,192.29,2.6]
[1760938559326,4.82235227,192.38,192.32,2.6]
[1760938559714,7.43235227,192.39,192.32,2.6]
[1760938560116,4.82235227,192.39,192.32,2.6]
[1760938560322,4.82235227,192.38,192.32,2.6]
[1760938560921,7.43235227,192.39,192.35,4.6773]
[1760938561124,4.82235227,192.39,192.32,2.6]
[1760938561522,4.82235227,192.4,192.32,2.6]
[1760938561721,4.82235227,192.41,192.32,2.6]
[1760938561921,4.82235227,192.41,192.35,2.6]
[1760938562218,9.07125358,192.46,192.37,2.6]
[1760938562428,4.01051792,192.45,192.37,2.6]
[1760938562628,4.01051792,192.44,192.43,7.2756]
[1760938562823,6.46125358,192.48,192.43,7.2756]
[1760938563026,4.01028439,192.47,192.39,3.37797791]
[1760938563327,15.62374659,192.51,192.47,4.6746]
[1760938563328,2.61,192.51,192.47,4.6746]
[1760938563523,2.61,192.5,192.47,4.6746]
[1760938565224,3.96876616,192.49,192.47,4.6746]
[1760938565423,3.96876616,192.48,192.47,4.6746]
[1760938566233,2.61,192.5,192.47,4.6746]
[1760938566428,3.96638965,192.49,192.47,4.6746]
[1760938566634,6.46125358,192.56,192.49,4.6741]
[1760938566635,2.61,192.55,192.49,4.6741]
[1760938566937,3.96638646,192.54,192.49,7.2741]
[1760938567139,3.96638646,192.53,192.49,7.2741]
[1760938567329,3.96638646,192.52,192.51,4.6737]
[1760938568132,2.61,192.56,192.51,4.6737]
[1760938568335,2.61,192.54,192.51,4.6737]
[1760938568635,3.96025861,192.53,192.51,4.6737]
[1760938568833,2.61,192.54,192.51,4.6737]
[1760938569033,3.96025748,192.53,192.51,4.6737]
[1760938569233,2.61,192.54,192.51,4.6737]
[1760938571533,2.61,192.58,192.46,2.6]
[1760938571723,2.61,192.56,192.46,2.6]
[1760938571926,2.61,192.54,192.46,2.6]
[1760938572428,2.61,192.54,192.47,4.6746]
[1760938573234,2.74,192.56,192.49,4.6741]
[1760938574329,7.4124,192.57,192.45,4.6751]
[1760938574535,2.74,192.55,192.45,4.6751]
[1760938574732,2.74,192.57,192.45,4.6751]
[1760938574934,2.74,192.55,192.45,4.6751]
[1760938575137,2.74,192.57,192.45,4.6751]
[1760938575435,2.74,192.55,192.45,4.6751]
[1760938575634,2.74,192.57,192.45,4.6751]
[1760938575836,2.74,192.55,192.45,4.6751]
[1760938576137,2.74,192.54,192.45,4.6751]
[1760938576832,4.6728,192.55,192.45,4.6751]
[1760938577030,2.74,192.54,192.42,2.59]
[1760938578342,2.74,192.54,192.46,4.6748]
[1760938578734,2.74,192.54,192.45,2.66]
[1760938578934,2.74,192.54,192.48,4.6743]
[1760938579933,8.14195292,192.59,192.45,7.3349]
[1760938580134,43.82,192.65,192.41,2.66]
[1760938580135,2.83,192.54,192.41,2.66]
[1760938581928,4.6734,192.53,192.44,4.6754]
[1760938582136,2.83,192.52,192.44,4.6754]
[1760938582633,4.6734,192.53,192.44,4.6754]
[1760938582634,2.83,192.51,192.44,4.6754]
[1760938585142,8.14195292,192.5,192.31,2.66]
[1760938585339,2.83,192.49,192.31,2.66]
[1760938585540,2.83,192.49,192.39,7.3364]
[1760938585739,2.83,192.49,192.39,2.66]
[1760938586138,2.83,192.49,192.42,4.6758]
[1760938586344,2.83,192.49,192.42,7.3358]
[1760938586842,6.20428409,192.49,192.42,7.3358]
[1760938588548,6.20428409,192.49,192.43,4.6754]
[1760938588840,3.37428409,192.49,192.42,2.66]
[1760938590041,3.37428409,192.49,192.45,2.66]
[1760938590946,3.37428409,192.49,192.46,2.66]
[1760938591844,3.37428409,192.52,192.37,2.66]
[1760938592142,2.83,192.53,192.4,2.66]
[1760938592447,2.83,192.53,192.39,3.37428409]
[1760938592448,2.83,192.53,192.48,4.6742]
[1760938592641,3.37428409,192.55,192.42,2.66]
[1760938593139,3.37428409,192.55,192.49,4.6739]
[1760938599552,3.89722157,192.56,192.5,4.6737]
[1760938599752,6.20428409,192.57,192.5,4.6737]
[1760938600143,3.89855188,192.56,192.5,4.6737]
[1760938600349,3.37428409,192.57,192.52,7.3334]
[1760938600550,2.83,192.56,192.52,7.3334]
[1760938600749,7.27410744,192.57,192.52,7.3334]
[1760938600949,3.37428409,192.57,192.52,7.3334]
[1760938601251,2.83,192.56,192.52,7.3334]
[1760938601852,3.37428409,192.57,192.52,7.3334]
[1760938602053,2.83,192.56,192.52,7.3334]
[1760938602845,2.83,192.56,192.52,4.6734]
[1760938603350,6.73657169,192.55,192.52,4.6734]
[1760938603556,2.83,192.55,192.52,4.6734]
[1760938603856,2.83,192.53,192.43,2.66]
[1760938604056,3.9071836,192.52,192.43,2.66]
[1760938604354,3.9071836,192.51,192.43,2.66]
[1760938604656,2.83,192.53,192.43,2.66]
[1760938604850,3.90967292,192.52,192.43,2.66]
[1760938605048,6.73967292,192.51,192.46,7.3348]
[1760938605245,2.83,192.51,192.46,7.3348]
[1760938605751,2.83,192.5,192.44,4.6754]
[1760938606159,3.37428409,192.51,192.39,2.66]
[1760938607154,3.37428409,192.51,192.45,4.6749]
[1760938608058,3.91379941,192.5,192.45,4.6749]
[1760938608260,2.74,192.5,192.45,7.4849]
[1760938608662,6.11428409,192.48,192.43,4.6756]
[1760938608856,2.74,192.47,192.41,2.81]
[1760938609256,2.74,192.47,192.4,4.6762]
[1760938609465,3.37428409,192.45,192.4,4.6762]
[1760938609863,2.74,192.44,192.4,4.6762]
[1760938610252,2.74,192.44,192.37,7.4869]
[1760938610457,2.74,192.41,192.33,46.49]
[1760938610959,3.37428409,192.39,192.34,4.6776]
[1760938611264,2.74,192.38,192.34,4.6776]
[1760938611663,2.74,192.38,192.33,46.49]
[1760938612166,3.37428409,192.39,192.33,46.49]
[1760938612566,3.37428409,192.39,192.33,51.168]
[1760938612770,2.74,192.42,192.33,43.68]
[1760938612966,6.11428409,192.42,192.34,2.81]
[1760938613269,6.11428409,192.42,192.35,4.6775]
[1760938614665,2.16104222,192.41,192.35,4.6775]
[1760938616870,2.16104222,192.41,192.37,2.81]
[1760938618664,2.16104222,192.41,192.38,2.81]
[1760938619175,4.90104222,192.41,192.37,4.6771]
[1760938619376,4.90104222,192.41,192.37,7.4871]
[1760938620465,3.93585848,192.45,192.37,4.6771]
[1760938620672,2.16104222,192.44,192.4,2.81]
[1760938620976,4.90104222,192.44,192.4,2.81]
[1760938621163,2.16104222,192.44,192.39,4.6766]
[1760938621368,2.74,192.43,192.39,4.6766]
[1760938622071,2.16104222,192.44,192.36,4.6771]
[1760938622271,2.16104222,192.42,192.36,4.6771]
[1760938622672,2.16104222,192.43,192.36,4.6771]
[1760938623273,2.16104222,192.45,192.39,2.81]
[1760938623482,4.83616784,192.5,192.4,2.81]
[1760938623483,3.93467815,192.49,192.4,2.81]
[1760938623679,4.90104222,192.5,192.42,2.81]
[1760938623881,4.90104222,192.5,192.43,4.6754]
[1760938624078,8.83487331,192.5,192.43,4.6754]
[1760938624281,4.90104222,192.5,192.43,4.6754]
[1760938625778,4.90104222,192.48,192.42,2.81]
[1760938626578,2.74,192.48,192.42,7.4858]
[1760938626780,2.16104222,192.5,192.42,2.81]
[1760938628084,2.74,192.51,192.43,2.16104222]
[1760938629281,3.93402145,192.5,192.42,2.81]
[1760938629492,6.67402145,192.52,192.45,2.16104222]
[1760938629783,2.74,192.52,192.45,6.83614222]
[1760938630178,2.74,192.52,192.46,4.6746]
[1760938630385,2.74,192.52,192.48,2.81]
[1760938631580,6.46125358,192.61,192.5,2.81]
[1760938631581,4.90104222,192.58,192.5,2.81]
[1760938631783,3.93272301,192.57,192.51,2.16104222]
[1760938632085,2.74,192.58,192.51,2.16104222]
[1760938634487,3.93087126,192.57,192.51,2.16104222]
[1760938635586,2.74,192.58,192.53,2.16104222]
[1760938635890,2.83,192.6,192.53,2.16104222]
[1760938636188,3.93014339,192.59,192.53,2.16104222]
[1760938636379,6.76014339,192.6,192.53,2.16104222]
[1760938636583,3.93014339,192.59,192.52,7.3034]
[1760938637381,6.76014339,192.6,192.52,7.3034]
[1760938638186,6.76014339,192.6,192.53,2.16104222]
[1760938640384,2.83,192.6,192.53,2.16104222]